Cogmind - Beta 13 @@@ ROGUE MODE // 2024.05.21 @ 08:51:09 Player: Cherman0 Result: Destroyed by as-63707 with Assembled Blade Performance ------------- Evolutions (0) 0 Regions Visited (4) 800 Robots Destroyed (35) 175 Value Destroyed (746) 746 Prototype IDs (26) 520 Alien Tech Used (0) 0 Bonus (300) 300 TOTAL SCORE: 2541 Bonus ------- Aligned with FarCom 300 Cogmind --------- Core Integrity 0/250 Matter 252/300 Energy 27/100 System Corruption 0% Temperature Cool (63) Movement Core (1450) Ox28 Location -9/Mines Parts ------- > --- POWER (1) -------- (None) > --- PROPULSION (2) --- (None) > --- UTILITY (2) ------ Huge Storage Unit Shield Generator > --- WEAPON (2) ------- Grenade Launcher > --- INVENTORY (25) --- Improved Ion Engine Light Nuclear Core Light Treads Light Treads Structural Scanner Machine Analyzer Sensor Array Experimental Sensor Array Improved Terrain Scanner ECM Suite Shield Generator Recalibrator Medium Laser Light Assault Rifle EMP Blaster EMP Blaster Rocket Launcher Datajack Longsword +1 Peak State ------------ > --- POWER ------------ Improved Ion Engine > --- PROPULSION ------- Light Treads Light Treads > --- UTILITY ---------- Huge Storage Unit Light Armor Plating > --- WEAPON ----------- YOLO Cannon > --- INVENTORY -------- Improved Ion Engine Improved Ion Engine Light Nuclear Core Light Treads Light Treads Light Treads Structural Scanner Machine Analyzer Sensor Array Improved Terrain Scanner Seismic Detector ECM Suite Shield Generator Shield Generator Recalibrator Medium Laser Medium Laser Light Assault Rifle EMP Blaster EMP Blaster Grenade Launcher Grenade Launcher Rocket Launcher Datajack Heavy Hammer [Rating: 30] Favorites ----------- Power Improved Ion Engine Engine Improved Ion Engine Propulsion Light Treads Treads Light Treads Leg Aluminum Leg Utility Huge Storage Unit Device Seismic Detector Storage Huge Storage Unit Protection Light Armor Plating Weapon EM Shotgun Energy Gun EM Shotgun Energy Cannon YOLO Cannon Launcher EMP Blaster Impact Weapon Heavy Hammer Special Melee Weapon Datajack Build | -11 -10 -10 -10 -9 ------- Run | Yrd Mat Min Exi Min Slots Evolved . | . . . . . Power . | . . . . . Propulsion . | . . . . . Utility . | . . . . . Weapon . | . . . . . Parts Attached 51 | 3 32 2 5 9 Power 3 | . 2 . . 1 Engine 3 | . 2 . . 1 Core . | . . . . . Reactor . | . . . . . Propulsion 4 | 2 . 1 . 1 Treads 4 | 2 . 1 . 1 Leg . | . . . . . Wheel . | . . . . . Hover . | . . . . . Flight . | . . . . . Utility 7 | 1 5 . . 1 Device 2 | 1 . . . 1 Storage 4 | . 4 . . . Processor . | . . . . . Hackware . | . . . . . Protection 1 | . 1 . . . Artifact . | . . . . . Weapon 37 | . 25 1 5 6 Energy Gun 29 | . 22 1 3 3 Energy Cannon 1 | . . . 1 . Ballistic Gun . | . . . . . Ballistic Cannon . | . . . . . Launcher 3 | . . . . 3 Special Weapon . | . . . . . Impact Weapon 1 | . 1 . . . Slashing Weapon . | . . . . . Piercing Weapon . | . . . . . Special Melee Weapon 3 | . 2 . 1 . Unidentified Prototypes . | . . . . . Parts Lost 12 | . 1 1 1 9 Power 2 | . . . . 2 Propulsion 3 | . . . . 3 Utility 1 | . . . . 1 Weapon 6 | . 1 1 1 3 Highest Loss Streak 7 | . 1 1 1 7 To Critical Strikes . | . . . . . Average Slot Usage (%) 99 | . 100 99 98 99 Engine 14 | . 14 14 14 14 Treads 27 | . 28 28 28 27 Device 5 | . 13 . . . Storage 14 | . 14 14 14 14 Protection 8 | . . 14 14 13 Energy Gun 25 | . 27 27 25 14 Launcher 1 | . . . . 13 Naked Turns . | . . . . . Heaviest Build 96 | 11 96 96 96 96 Greatest Support 40 | 40 40 40 40 40 Greatest Overweight (x) 2 | . 2 2 2 2 Average Overweight (x) 1 | . 1 2 2 2 Largest Inventory Capacity 25 | 8 25 25 25 25 Average Capacity 23 | 8 22 25 25 25 Most Carried 25 | 6 24 25 25 24 Average Carried 21 | 3 18 24 25 21 Final Capacity 25 | 8 25 25 25 25 Final Carried 25 | 4 24 25 25 19 Class Distribution -------------------- 100% | Mutant Dominant Class ---------------- Mutant | -10/Materials Mutant | -10/Mines Mutant | -10/Exiles Mutant | -9/Mines Resources | -11 -10 -10 -10 -9 ----------- Run | Yrd Mat Min Exi Min Matter Collected 646 | 230 313 20 23 60 Remotely . | . . . . . Salvage Created 1264 | 125 770 170 . 199 Parts 72 | 9 41 12 . 10 Haulers Intercepted 2 | . 2 . . . Recyclers Shooed 1 | 1 . . . . Parts Field Recycled . | . . . . . Retrieved Matter . | . . . . . Parts Self-Destructed . | . . . . . Prevented . | . . . . . Kills | -11 -10 -10 -10 -9 ------- Run | Yrd Mat Min Exi Min Combat Hostiles Destroyed 26 | . 12 7 . 7 Guns 21 | . 12 7 . 2 AOE 5 | . . . . 5 Classes Destroyed 10 | 2 7 1 . . Worker 1 | . 1 . . . Tunneler 4 | 3 . . . 1 Hauler 2 | . 2 . . . Recycler 1 | 1 . . . . Mechanic 1 | . 1 . . . Operator 3 | . 3 . . . Watcher 3 | . 3 . . . Swarmer 6 | . 3 3 . . Grunt 14 | . 9 2 . 3 Assembled 6 | . . 2 . 4 Best Kill Streak 5 | 2 5 2 . 4 Combat Bots Only 5 | . 5 2 . 4 Max Kills in Single Turn 2 | 1 2 1 . 2 Gunslinging 1 | . 1 . . . Exploded 2 | . . . . 2 Melee . | . . . . . Uniques/NPCs Destroyed . | . . . . . Combat | -11 -10 -10 -10 -9 -------- Run | Yrd Mat Min Exi Min Hostile Shots Fired 130 | . 40 33 5 52 Missed 37 | . 10 9 2 16 Damage Taken 1443 | . 377 260 116 690 Core 256 | . 50 60 18 128 Absorbed by Shields 42 | . . . . 42 Core Remaining (%) 100 | 100 . . . . Volleys Fired 91 | 6 58 13 2 12 Largest 2 | 2 2 2 1 2 Hottest 100 | 80 100 90 45 100 Shots Fired 173 | 12 116 26 2 17 Gun 166 | 12 116 26 2 10 Cannon . | . . . . . Launcher 7 | . . . . 7 Special . | . . . . . Kinetic . | . . . . . Thermal 77 | 12 57 . . 8 Explosive 2 | . . . . 2 Electromagnetic 94 | . 59 26 2 7 Robot Hit Streak 14 | 6 14 12 1 7 Robot Miss Streak 4 | 1 4 4 1 2 Penetration Max . | . . . . . Secondary Targets 4 | . 2 1 . 1 Max Gunslinging Chain 1 | . 1 1 . 1 Shots Hit Robots 126 | 9 87 19 3 8 Core Hits 84 | 5 43 17 . 19 Critical Kills . | . . . . . Critical Parts Destroyed . | . . . . . Critical Strikes 4 | . 3 . . 1 Burn 4 | . 3 . . 1 Melee Attacks 2 | . 1 . 1 . Impact 1 | . 1 . . . Slashing . | . . . . . Piercing . | . . . . . Sneak Attacks 1 | . . . 1 . Combat Hostiles . | . . . . . Follow-up Attacks . | . . . . . Damage Inflicted 2075 | 99 1311 235 17 413 Guns 1688 | 99 1247 226 17 99 Cannons . | . . . . . Explosions 369 | . 64 . . 305 Melee . | . . . . . Ramming 18 | . . 9 . 9 Kinetic . | . . . . . Thermal 719 | 99 557 . . 63 Explosive 165 | . . . . 165 Electromagnetic 1173 | . 754 226 17 176 Impact . | . . . . . Slashing . | . . . . . Piercing . | . . . . . Highest Corruption . | . . . . . Average Corruption . | . . . . . Corruption Purged . | . . . . . Corruption Blocked . | . . . . . Overload Shots . | . . . . . Overflow Damage 4 | . . . . 4 Projectiles . | . . . . . Explosions 4 | . . . . 4 Melee . | . . . . . Knockbacks . | . . . . . Impact . | . . . . . Kinetic . | . . . . . Secondary . | . . . . . Self-Inflicted Damage 63 | . 13 . . 50 Shots 6 | . 1 . . 5 Rammed 5 | . 1 3 . 1 Targets Rammed 6 | . 1 3 . 2 Kicked . | . . . . . Crushed 1 | . . . . 1 Highest Temperature 230 | 56 230 162 24 132 Average Temperature 65 | 19 70 60 14 73 Received Heat Transfer 326 | . 183 45 . 98 Siege Activations . | . . . . . Robots Corrupted . | . . . . . Combat Hostiles . | . . . . . Parts Fried 2 | . 2 . . . Impact Corruptions . | . . . . . Robots Melted . | . . . . . Combat Hostiles . | . . . . . Parts Melted . | . . . . . Heat Transferred 2190 | 225 1706 . . 259 Parts Sabotaged . | . . . . . Parts Stolen . | . . . . . Parts Stripped . | . . . . . Power Chain Reactions 2 | . 2 . . . Alert | -11 -10 -10 -10 -9 ------- Run | Yrd Mat Min Exi Min Peak Influence 125 | 20 125 75 . 65 Initial 13 | . 13 7 . . Average 25 | 9 33 13 . 31 Maximum Alert Level . | . . . . . Low Security (%) 100 | 100 100 100 . 100 Level 1 . | . . . . . Level 2 . | . . . . . Level 3 . | . . . . . Level 4 . | . . . . . Level 5 . | . . . . . High Security . | . . . . . Max Security . | . . . . . Squads Dispatched 2 | . 2 . . . Investigation . | . . . . . Extermination . | . . . . . Reinforcement 2 | . 2 . . . Assault . | . . . . . Garrison . | . . . . . Intercept . | . . . . . Searches Triggered . | . . . . . Construction Impeded . | . . . . . Haulers Reinforced . | . . . . . Active Scanning Responses . | . . . . . Cargo Convoy Interrupts . | . . . . . Stealth | -11 -10 -10 -10 -9 --------- Run | Yrd Mat Min Exi Min Distress Signals 1 | . 1 . . . Communications Jammed . | . . . . . Distress Signals . | . . . . . Times Spotted 54 | . 28 8 2 16 Peak Tracking Total 19 | . 5 3 2 19 Tactical Retreats 2 | . 1 1 . . Traps | -11 -10 -10 -10 -9 ------- Run | Yrd Mat Min Exi Min Traps Triggered . | . . . . . Indirectly . | . . . . . Trap Hack Attempts 30 | . 30 . . . Triggered . | . . . . . Disarmed . | . . . . . Reprogrammed 3 | . 3 . . . Reused . | . . . . . Traps Extracted . | . . . . . Installed . | . . . . . Triggered . | . . . . . Machines | -11 -10 -10 -10 -9 ---------- Run | Yrd Mat Min Exi Min Machines Disabled 1 | . 1 . . . Max in Single Turn 1 | . 1 . . . Machines Repaired . | . . . . . Machines Dismantled . | . . . . . Machines Sabotaged . | . . . . . Overloaded Fab Kills . | . . . . . Hacking | -11 -10 -10 -10 -9 --------- Run | Yrd Mat Min Exi Min Machines Accessed 7 | . 6 . 1 . Terminals 6 | . 6 . . . Fabricators . | . . . . . Repair Stations . | . . . . . Recycling Units . | . . . . . Scanalyzers . | . . . . . Garrison Access . | . . . . . Total Hacks 21 | . 20 . 1 . Successful 7 | . 6 . 1 . Failed 14 | . 14 . . . Catastrophic . | . . . . . Database Lockouts . | . . . . . Manual 16 | . 15 . 1 . Terminals 20 | . 20 . . . Fabricators . | . . . . . Repair Stations . | . . . . . Recycling Units . | . . . . . Scanalyzers . | . . . . . Garrison Access . | . . . . . Terminal Hacks 5 | . 4 . 1 . Robot Analysis 1 | . 1 . . . Prototype ID Bank 1 | . 1 . . . Locate Traps 1 | . 1 . . . Hauler Manifests 1 | . 1 . . . Derelict Proto ID Bank 1 | . . . 1 . Fabricator Hacks . | . . . . . Repair Station Hacks . | . . . . . Recycling Unit Hacks . | . . . . . Scanalyzer . | . . . . . Garrison Access Hacks . | . . . . . Unauthorized Hacks 2 | . 2 . . . Terminals 2 | . 2 . . . Botnet 1 | . 1 . . . Operators 1 | . 1 . . . Fabricators . | . . . . . Repair Stations . | . . . . . Recycling Units . | . . . . . Scanalyzers . | . . . . . Garrison Access . | . . . . . Data Cores Recovered . | . . . . . Used . | . . . . . Hacking Detections 6 | . 6 . . . Full Trace Events . | . . . . . Feedback Events . | . . . . . Feedback Blocked . | . . . . . Robot Schematics Acquired . | . . . . . Robots Built . | . . . . . Authchips . | . . . . . Time . | . . . . . Total Robot Build Rating . | . . . . . Part Schematics Acquired . | . . . . . Parts Built . | . . . . . Authchips . | . . . . . Time . | . . . . . Total Part Build Rating . | . . . . . Parts Repaired . | . . . . . Time . | . . . . . Parts Recycled . | . . . . . Recycled Matter . | . . . . . Retrieved Matter . | . . . . . Retrieved Components . | . . . . . Parts Scanalyzed . | . . . . . Part Schematics Acquired . | . . . . . Parts Damaged . | . . . . . Bothacking | -11 -10 -10 -10 -9 ------------ Run | Yrd Mat Min Exi Min Used RIF Installer . | . . . . . Robots Hacked 1 | . . . 1 . Non-combat . | . . . . . Combat 1 | . . . 1 . Robot Hacks Applied 1 | . . . 1 . parse_system 1 | . . . 1 . Relay Couplers Released . | . . . . . Fabnet Peak Effective % . | . . . . . Robots Rewired . | . . . . . Allies Hacked . | . . . . . Hacks Repelled . | . . . . . Allies | -11 -10 -10 -10 -9 -------- Run | Yrd Mat Min Exi Min Total Allies . | . . . . . Largest Group . | . . . . . Highest-Rated Group . | . . . . . Highest-Rated Ally . | . . . . . Total Orders . | . . . . . Ally Attacks . | . . . . . Total Damage . | . . . . . Kills . | . . . . . Allies Corrupted . | . . . . . Allies Melted . | . . . . . Intel | -11 -10 -10 -10 -9 ------- Run | Yrd Mat Min Exi Min Robot Analysis Total 1 | . 1 . . . Derelict Logs Recovered 3 | . . 1 . 2 Drone Launches . | . . . . . Drone Recoveries . | . . . . . Exploration | -11 -10 -10 -10 -9 ------------- Run | Yrd Mat Min Exi Min Turns Passed 7733 | 156 3160 2485 1111 821 Spaces Moved 2363 | 85 947 749 343 239 Core . | . . . . . Treads 2343 | 65 947 749 343 239 Legs 20 | 20 . . . . Wheels . | . . . . . Hover . | . . . . . Flight . | . . . . . Fastest Speed 120 | 120 160 320 320 320 Average Speed 295 | 150 275 320 320 320 Slowest Speed 320 | 160 320 320 320 320 Overloaded Moves . | . . . . . Propulsion Burnouts . | . . . . . Robots Hopped . | . . . . . Cave-ins Triggered . | . . . . . Exploration Rate (%) 66 | 6 99 96 70 59 Regions Visited 4 Branch Regions 3 Pre-discovered Areas 1 | . . 1 . . Known Exits Taken . | . . . . . Unknown Exits Taken 4 | 1 1 1 1 . Scrap Searched 3 | . . 2 . 1 Spaces Dug . | . . . . . Terrain Destroyed 19 | . 8 . . 11 Melee . | . . . . . Projectile . | . . . . . AOE 19 | . 8 . . 11 Terrain Rammed . | . . . . . Walls Destroyed . | . . . . . Machines Disabled . | . . . . . Actions | -11 -10 -10 -10 -9 --------- Run | Yrd Mat Min Exi Min Total 2912 | 103 1375 806 355 273 Wait 322 | 4 272 39 . 7 Move 2359 | 84 946 748 342 239 Hop . | . . . . . Pick Up 31 | 2 25 1 1 2 Fast Attach 4 | 1 . . 3 . Attach 10 | 2 1 1 . 6 Detach . | . . . . . Swap 37 | . 31 1 2 3 Drop 20 | 4 10 . 4 2 Fire 91 | 6 58 13 2 12 Melee 2 | . 1 . 1 . Ram . | . . . . . Kick . | . . . . . Crush 6 | . 1 3 . 2 Escape Stasis . | . . . . . Rewire . | . . . . . Trap 30 | . 30 . . . Miscellaneous . | . . . . . Route ------- -11/Scrapyard -10/Materials (discovered 6 exits: [*Mat x3] / [*Min x2] / [*Sub]) -10/Mines (discovered 3 exits: [*Mat x2] / *Exi) -10/Exiles (discovered 2 exits: [*Min x2]) -9/Mines History --------- Turn | Location | Event 1 | -11/Scrapyard | Discovered new exit (range 3) 157 | -11/Scrapyard | Entered Materials 332 | -10/Materials | Build established: Mutant 434 | -10/Materials | Discovered new exit (range 16) 866 | -10/Materials | Discovered new exit (range 13) 1089 | -10/Materials | Discovered new exit (range 8) 1678 | -10/Materials | Discovered new exit (range 8) 1998 | -10/Materials | Discovered new exit (range 15) 2042 | -10/Materials | Discovered new exit (range 7) 3317 | -10/Materials | Entered Mines 3363 | -10/Mines | Met a Derelict bent on vengeance 3459 | -10/Mines | Received a Rocket Launcher from a helpful Derelict 3504 | -10/Mines | Deemed a non-threat by the Exiles lab entrance 3504 | -10/Mines | Discovered new exit (range 5) 3731 | -10/Mines | Learned location of Zion (-7) 3930 | -10/Mines | Discovered new exit (range 6) 4096 | -10/Mines | Discovered new exit (range 8) 5256 | -10/Mines | Excavation squad dispatched 5256 | -10/Mines | A large section of the Mines collapsed 5802 | -10/Mines | Entered Exiles 5854 | -10/Exiles | Discovered new exit (range 15) 5921 | -10/Exiles | Met 8R-AWN 5966 | -10/Exiles | Met EX-HEX 6138 | -10/Exiles | Met EX-DEC 6394 | -10/Exiles | Met EX-BIN 6439 | -10/Exiles | Aligned with FarCom system 6442 | -10/Exiles | Given EX-Vault access code 6516 | -10/Exiles | Opened EX-Vault 6536 | -10/Exiles | Found YOLO Cannon 6545 | -10/Exiles | Found Longsword +1 6632 | -10/Exiles | Warned to stay clear of 0b10 Research branches 6653 | -10/Exiles | Exiles lab attacked by MAIN.C 6829 | -10/Exiles | Core integrity fell below 50% 6865 | -10/Exiles | Discovered new exit (range 15) 6913 | -10/Exiles | Left Exiles lab with Longsword +1 6913 | -10/Exiles | Entered Mines 7240 | -9/Mines | Learned Materials security intel 7458 | -9/Mines | Learned Materials non-interactive machine intel 7702 | -9/Mines | Found a damaged Exp. Sensor Array with a note attached 7706 | -9/Mines | Assembled infested the area 7714 | -9/Mines | Found Corrupted Prototype Device 7732 | -9/Mines | Core integrity fell below 20% 7734 | -9/Mines | Destroyed by as-63707 with Assembled Blade Last Messages --------------- 07702_ K-01 Serf collects debris. 07706_ ALERT: Infestation in the mines, dispatching Demolisher response squad. 07709_ Lgt. Armor Plating destroyed. 07712_ as-64263 destroyed. 07714_ Acquired Corrupted Prototype Device. 07717_ as-48348 suffers critical hit (Burn). 07717_ as-48348 destroyed. 07721_ Lgt. Treads destroyed. 07726_ as-53707 suffers critical hit (Destroy). 07726_ as-53707 destroyed. 07726_ Lgt. Treads destroyed. 07729_ Med. Laser destroyed. 07729_ as-33690 destroyed. 07731_ as-68201 destroyed. 07731_ Grenade Launcher destroyed. 07731_ Destroyed Grenade Launcher. 07731_ as-10203 destroyed. 07734_ as-97833 destroyed. 07734_ Imp. Ion Engine destroyed. Map ----- +----------------------------------------------------+ | ????????????????????????????????????????## | | ?????????????????????????????????????????# | | ?????????????????????????????????????????# | | ?????????????????????????????????????????## | | ??????????????????????????????????????????## | | ???????????????????????????????????????????# | | ???????????????????????????????????????????# | | ???????????????????????????????????????????# | | ???????????????????????????????????????????## | | ????????????????????????????????????????????## | | ?????????????????????#a ?????????????????????# | | ????????????????????? % ???????????????????? | | ????????????????????? a ?????????????????? | | ???????????????????## ?????????????????? | | ???????????????????# ??????????????????? | | ???????????????????# ??????????????????? | | ???????????????????# ???????????????????? | | ???????????????##### % ##?##?????????????? | | ???????????????? ## ##???????????? | | ????????????????? %dd ##?????????? | | ?????????????????# #?????????? | | ????????????????## ??????????? | | ????????????????# ????####???? | | ???????????????## % ?# #????## ####? | | ???????????????# %a#??# #?????# ## | | ????????????????# a@#??# #?????# # | | ????????????????## a #?## #????## | | ?????????????????## ### ##?### | | ??????????????????## ## ### | | ???????????????????# ### | | ???????????????????# ## ##?## | | ???????????????????# ### ##???# | | ???????????????????## ##?# #????? | | ???????????????????## ####??# #????? | | ???????????????????# ##????? #????? | | ???????????????????# ##??????###????? | | ???????????????????## ##??????????????? | | ????????????????????## ##???????????????? | | ?????????????????????### #????????????????? | | ???????????????????????## ????????????????? | | ????????????????????????## #????????????????? | | ?????????????????????????# #????????????????? | | ????????????????????????? #????????????????? | | ????????????????????????? #????????????????? | | ???????????????????????? #????????????????? | | ???????????????????????? ##????????????????? | | ???????????????????????? #??????????????????? | | ???????????????????????? #???????????????????? | | ????????????????????????#????????????????????? | | ?????????????????????????????????????????????? | +----------------------------------------------------+ Best States ------------- Heat Dissipation 25 Energy Generation 12 Energy Capacity 265 Matter Stores 300 Matter Capacity 300 Sight Range 16 Terrain Scan Density 10 Armor Coverage 150 Evasion (%) 50 Recoil Reduction 2 Item Schematics ----------------- None Robot Schematics ------------------ None Fabricated ------------ Nothing Alien Tech Used ----------------- None Achievements -------------- None Challenges ------------ None Game ------ Seed LaserGaussClaymores Manual? 0 Play Time 00:32:50 Cumulative 96.2 hours Start 2024.05.21 @ 08:17:27 End 2024.05.21 @ 08:51:09 Sessions 1 Manual Loads 0 Difficulty Rogue Special Mode None Game No. 61 Rogue 61 Adventurer 0 Explorer 0 Win Type - Total 0 Types 0/0/0/0/0/0/0/0/0 Lore% 33 Gallery% 47 Achievement% 37 Wizard Run 0 Options --------- Layout 1 ASCII 0 Keyboard 0 Movement Mouse Keybinds 1 Fullscreen 1 Font 28/SmallcapsGlow Map View 50x43 Zoom Use 0% Tactical HUD 1 Map Filters NONE Filters NONE Steam 1 RUN: 6529bbbf-7ed6-4942-abd1-2f918c9e2a3c